fUSD/lending_fUSD_20251217
["ID","MTS","AMOUNT","RATE_DAILY","PERIOD"]
[398911909,1765987847741,-428.0,0.0003411,2]
[398911911,1765987847751,-163.46,0.000342,30]
[398911913,1765987847761,-199.0,0.00034246,30]
[398911915,1765987847771,-493.0,0.00034247,2]
[398911918,1765987847780,-500.0,0.00034247,2]
[398911920,1765987847790,-452.0,0.00034247,2]
[398911921,1765987847799,-428.0,0.00034247,2]
[398911923,1765987847809,-493.0,0.00034384,2]
[398911925,1765987847823,-500.0,0.00034384,2]
[398911927,1765987847833,-452.0,0.00034384,2]
[398911929,1765987847843,-428.0,0.00034384,2]
[398911931,1765987847853,-1671.06,0.000344,2]
[398911933,1765987847863,-54414.7288497,0.00034503,2]
[398911936,1765987847873,-493.0,0.00034521,2]
[398911938,1765987847882,-500.0,0.00034521,2]
[398911940,1765987847892,-452.0,0.00034521,2]
[398911942,1765987847902,-428.0,0.00034521,2]
[398911944,1765987847911,-1261.0,0.00034529,2]
[398911945,1765987847919,-564.0,0.00034529,2]
[398911948,1765987847929,-1197.0,0.0003461,2]
[398911950,1765987847939,-911.0,0.0003461,2]
[398911952,1765987847949,-2427.0,0.0003461,2]
[398911954,1765987847959,-4799.0,0.0003461,2]
[398911956,1765987847968,-493.0,0.00034658,2]
[398911958,1765987847979,-500.0,0.00034658,2]
[398911960,1765987847989,-452.0,0.00034658,2]
[398911962,1765987848004,-428.0,0.00034658,2]
[398911964,1765987848023,-493.0,0.00034795,2]
[398911966,1765987848047,-500.0,0.00034795,2]
[398911968,1765987848070,-452.0,0.00034795,2]
[398911970,1765987848081,-428.0,0.00034795,2]
[398911972,1765987848090,-176.504,0.00034867,40]
[398911974,1765987848100,-152.0,0.00034878,4]
[398911976,1765987848109,-493.0,0.00034932,2]
[398911978,1765987848118,-500.0,0.00034932,2]
[398911980,1765987848127,-452.0,0.00034932,2]
[398911982,1765987848137,-428.0,0.00034932,2]
[398911984,1765987848147,-310.8,0.00034953,2]
[398911986,1765987848156,-385.37906696,0.00034962,2]
[398911988,1765987848165,-3800.0,0.00035,25]
[398911990,1765987848174,-1607.0,0.00035021,2]
[398911992,1765987848183,-1325.0,0.00035021,2]
[398911994,1765987848192,-2768.256,0.00035021,2]
[398911996,1765987848201,-612.0,0.00035021,2]
[398911998,1765987848212,-493.0,0.00035069,2]
[398912000,1765987848222,-500.0,0.00035069,2]
[398912002,1765987848231,-452.0,0.00035069,2]
[398912004,1765987848241,-428.0,0.00035069,2]
[398912006,1765987848251,-150.0,0.00035088,4]
[398912008,1765987848260,-285.82987756,0.00035088,4]
[398912010,1765987848269,-150.0,0.00035088,4]
[398912012,1765987848279,-150.0,0.00035088,4]
[398912014,1765987848289,-150.00000001,0.00035088,4]
[398912015,1765987848298,-150.0,0.00035088,4]
[398912018,1765987848307,-150.0,0.00035088,4]
[398912019,1765987848319,-150.0,0.00035088,4]
[398912021,1765987848328,-1797.48,0.000351,14]
[398912023,1765987848337,-706.69,0.000351,14]
[398912026,1765987848347,-1671.06,0.000351,2]
[398912027,1765987848356,-428.34,0.000352,30]
[398912029,1765987848365,-163.46,0.000352,30]
[398912031,1765987848374,-493.0,0.00035206,2]
[398912034,1765987848383,-500.0,0.00035206,2]
[398912036,1765987848393,-452.0,0.00035206,2]
[398912038,1765987848402,-428.0,0.00035206,2]
[398912039,1765987848411,-493.0,0.00035343,2]
[398912042,1765987848420,-500.0,0.00035343,2]
[398912044,1765987848429,-452.0,0.00035343,2]
[398912046,1765987848438,-428.0,0.00035343,2]
[398912048,1765987848447,-431.42848765,0.00035372,2]
[398912050,1765987848457,-493.0,0.0003548,2]
[398912052,1765987848466,-500.0,0.0003548,2]
[398912054,1765987848475,-452.0,0.0003548,2]
[398912056,1765987848484,-428.0,0.0003548,2]
[398912058,1765987848493,-277.0947455,0.00035485,2]
[398912060,1765987848503,-1000.0,0.00035615,30]
[398912062,1765987848512,-1000.0,0.00035615,30]
[398912064,1765987848521,-1000.0,0.00035615,30]
[398912066,1765987848530,-1000.0,0.00035615,30]
[398912068,1765987848539,-1000.0,0.00035615,30]
[398912070,1765987848549,-1000.0,0.00035615,30]
[398912072,1765987848559,-1000.0,0.00035615,30]
[398912074,1765987848572,-1000.0,0.00035615,30]
[398912075,1765987848581,-1000.0,0.00035615,30]
[398912076,1765987848591,-1000.0,0.00035615,30]
[398912077,1765987848600,-1000.0,0.00035615,30]
[398912078,1765987848610,-1000.0,0.00035615,30]
[398912079,1765987848620,-1000.0,0.00035615,30]
[398912080,1765987848630,-1000.0,0.00035615,30]
[398912081,1765987848639,-1000.0,0.00035615,30]
[398912082,1765987848648,-1000.0,0.00035615,30]
[398912083,1765987848660,-1000.0,0.00035615,30]
[398912084,1765987848669,-1000.0,0.00035615,30]
[398912086,1765987848679,-1000.0,0.00035615,30]
[398912088,1765987848688,-1000.0,0.00035615,30]
[398912090,1765987848698,-257.67,0.00035616,45]
[398912092,1765987848707,-323.4,0.00035616,77]
[398912094,1765987848717,-1500.0,0.00035616,111]
[398912096,1765987848726,-1500.0,0.00035616,68]
[398912098,1765987848737,-1500.0,0.00035616,72]
[398912101,1765987848747,-1500.0,0.00035616,76]
[398912102,1765987848756,-1500.0,0.00035616,47]
[398912105,1765987848765,-1500.0,0.00035616,88]
[398912107,1765987848775,-1500.0,0.00035616,95]
[398912109,1765987848784,-1500.0,0.00035616,118]
[398912110,1765987848793,-1500.0,0.00035616,54]
[398912113,1765987848803,-1500.0,0.00035616,72]
[398912115,1765987848812,-1500.0,0.00035616,42]
[398912117,1765987848825,-1500.0,0.00035616,116]
[398912119,1765987848834,-1500.0,0.00035616,90]
[398912121,1765987848844,-2131.29,0.00035616,99]
[398912123,1765987848854,-493.0,0.00035617,2]
[398912125,1765987848865,-500.0,0.00035617,2]
[398912127,1765987848874,-452.0,0.00035617,2]
[398912129,1765987848883,-428.0,0.00035617,2]
[398912131,1765987848893,-493.0,0.00035754,2]
[398912133,1765987848902,-500.0,0.00035754,2]
[398912135,1765987848912,-452.0,0.00035754,2]
[398912137,1765987848921,-428.0,0.00035754,2]
[398912139,1765987848930,-493.0,0.00035891,2]
[398912141,1765987848940,-419.02647921,0.00035891,2]
[398912143,1765987848949,-452.0,0.00035891,2]
[398912145,1765987848959,-493.0,0.00036028,2]
[398912147,1765987848969,-349.14561395,0.00036075,2]
[398912149,1765987848978,-4415.31,0.000361,14]
[398912152,1765987848988,-493.0,0.00036165,2]
[398912154,1765987848998,-2000.0,0.000362,2]
[398912156,1765987849007,-5797.87625258,0.00036222,2]
[398912158,1765987849017,-14003.8447273,0.00036244,2]
[398912160,1765987849027,-493.0,0.00036302,2]
[398912162,1765987849036,-1000.0,0.00036412,16]
[398912164,1765987849046,-512.06,0.00036438,2]
[398912166,1765987849055,-493.0,0.00036439,2]
[398912168,1765987849066,-513.64616008,0.00036576,2]
[398912170,1765987849078,-447.3913417,0.00036741,2]
[398912172,1765987849088,-2000.0,0.00037,30]
[398912174,1765987849097,-3000.0,0.00037,30]
[398912176,1765987849106,-3000.0,0.00037,30]
[398912178,1765987849116,-3000.0,0.00037,30]
[398912181,1765987849125,-3000.0,0.00037,30]
[398912183,1765987849135,-481.46730423,0.00037,30]
[398912185,1765987849144,-500.0,0.00037156,14]
[398912187,1765987849153,-500.0,0.00037156,14]
[398912189,1765987849163,-500.0,0.00037156,14]
[398912191,1765987849173,-2080.24474159,0.00037389,2]
[398912193,1765987849182,-1797.48,0.000374,14]
[398912195,1765987849191,-706.69,0.000374,14]
[398912197,1765987849202,-1261.0,0.00037529,2]
[398912199,1765987849213,-564.0,0.00037529,2]
[398912201,1765987849223,-2040.519531,0.00037531,120]
[398912203,1765987849232,-1197.0,0.0003761,2]
[398912205,1765987849241,-911.0,0.0003761,2]
[398912207,1765987849251,-2427.0,0.0003761,2]
[398912209,1765987849261,-380.105,0.0003761,2]
[398912211,1765987849273,-199.21611118,0.0003764,2]
[398912213,1765987849284,-4415.31,0.000377,14]
[398912215,1765987849295,-152.0,0.00037743,5]
[398912217,1765987849305,-236.9189482,0.00037798,2]
[398912219,1765987849315,-2291.85364901,0.00037914,2]
[398912221,1765987849327,-500.0,0.00037978,14]
[398912223,1765987849336,-500.0,0.00037978,14]
[398912225,1765987849346,-199.21611118,0.00037989,2]
[398912228,1765987849356,-1000.0,0.00037999,3]
[398912230,1765987849365,-1000.0,0.00037999,4]
[398912232,1765987849375,-162.0,0.00038,30]
[398912234,1765987849385,-168.0,0.00038,30]
[398912236,1765987849395,-1607.0,0.00038021,2]
[398912238,1765987849404,-1325.0,0.00038021,2]
[398912240,1765987849413,-612.0,0.00038021,2]
[398912242,1765987849424,-857.98,0.00038086,5]
[398912244,1765987849434,-1000.0,0.00038099,7]
[398912246,1765987849444,-1000.0,0.00038099,30]
[398912248,1765987849454,-463.94482134,0.0003811,2]
[398912250,1765987849464,-2291.85364901,0.00038131,2]
[398912252,1765987849475,-1000.0,0.00038191,30]
[398912254,1765987849485,-553.34,0.00038192,2]
[398912256,1765987849494,-358.48,0.00038192,2]
[398912258,1765987849504,-464.23,0.00038192,2]
[398912260,1765987849514,-300.7,0.00038192,2]
[398912262,1765987849523,-200.0,0.00038236,10]
[398912265,1765987849533,-152.39648447,0.00038279,2]
[398912267,1765987849543,-199.21611119,0.00038307,2]
[398912269,1765987849556,-16439.93601502,0.00038325,2]
[398912271,1765987849566,-634.47820322,0.00038325,2]
[398912273,1765987849578,-236.91894819,0.00038349,2]
[398912275,1765987849588,-3525.84640427,0.00038355,5]
[398912277,1765987849598,-1000.0,0.00038355,5]
[398912280,1765987849608,-1000.0,0.00038355,30]
[398912282,1765987849618,-4474.74,0.00038356,120]
[398912284,1765987849627,-1004.21871334,0.00038356,5]
[398912286,1765987849637,-310.8,0.00038378,2]
[398912288,1765987849647,-1000.0,0.00038398,10]
[398912290,1765987849656,-1045.0,0.000384,7]
[398912292,1765987849666,-182.50362026,0.00038415,2]
[398912294,1765987849676,-151.0,0.00038422,14]
[398912296,1765987849686,-512.06,0.00038424,2]
[398912298,1765987849695,-14047.0286748,0.00038425,2]
[398912300,1765987849705,-17314.1258292,0.00038425,2]
[398912302,1765987849714,-171336.8598358,0.00038425,2]
[398912304,1765987849724,-12302.1777083,0.00038425,2]
[398912306,1765987849734,-151.0,0.00038425,120]
[398912308,1765987849743,-151.0,0.00038425,120]
[398912310,1765987849752,-151.0,0.00038425,120]
[398912312,1765987849762,-280.397407,0.00038425,120]
[398912314,1765987849771,-280.397407,0.00038425,120]
[398912316,1765987849781,-280.397407,0.00038425,120]
[398912318,1765987849791,-280.397407,0.00038425,120]
[398912320,1765987849800,-151.0,0.00038425,120]
[398912322,1765987849810,-151.0,0.00038425,120]
[398912325,1765987849819,-151.0,0.00038425,120]
[398912327,1765987849829,-151.0,0.00038425,120]
[398912329,1765987849839,-151.0,0.00038425,120]
[398912331,1765987849848,-151.0,0.00038425,120]
[398912333,1765987849857,-151.0,0.00038425,120]
[398912335,1765987849866,-151.0,0.00038425,120]
[398912337,1765987849876,-151.0,0.00038425,120]
[398912339,1765987849885,-205.364424,0.00038425,120]
[398912341,1765987849895,-151.0,0.00038425,120]
[398912343,1765987849904,-151.0,0.00038425,120]
[398912345,1765987849914,-151.0,0.00038425,120]
[398912347,1765987849924,-151.0,0.00038425,120]
[398912349,1765987849934,-351.855208,0.00038425,7]
[398912351,1765987849944,-351.855208,0.00038425,7]
[398912353,1765987849953,-351.855208,0.00038425,7]
[398912355,1765987849963,-351.855208,0.00038425,7]
[398912357,1765987849972,-151.0,0.00038425,10]
[398912359,1765987849983,-151.0,0.00038425,120]
[398912361,1765987849993,-151.0,0.00038425,120]
[398912363,1765987850002,-151.0,0.00038425,120]
[398912365,1765987850013,-790.214427,0.00038425,120]
[398912367,1765987850023,-151.0,0.00038425,120]
[398912369,1765987850032,-790.214427,0.00038425,120]
[398912371,1765987850042,-151.0,0.00038425,120]
[398912373,1765987850052,-151.0,0.00038425,120]
[398912375,1765987850062,-790.214427,0.00038425,120]
[398912377,1765987850074,-151.0,0.00038425,120]
[398912379,1765987850085,-151.0,0.00038425,120]
[398912382,1765987850096,-210.278917,0.00038425,120]
[398912383,1765987850106,-790.214427,0.00038425,120]
[398912386,1765987850117,-210.278917,0.00038425,120]
[398912388,1765987850126,-151.0,0.00038425,120]
[398912390,1765987850135,-210.278917,0.00038425,120]
[398912391,1765987850145,-151.0,0.00038425,120]
[398912394,1765987850155,-150.0,0.0003849,7]
[398912396,1765987850165,-1000.0,0.00038544,2]
[398912398,1765987850174,-150.0,0.00038545,2]
[398912400,1765987850184,-3754.98343141,0.00038545,2]
[398912402,1765987850194,-150.0,0.00038545,2]
[398912404,1765987850204,-2881.00779891,0.00038545,2]
[398912406,1765987850217,-150.0,0.00038545,2]
[398912408,1765987850227,-6293.67714117,0.00038545,2]
[398912410,1765987850236,-150.0,0.00038545,2]
[398912412,1765987850246,-548.229915,0.00038545,2]
[398912414,1765987850256,-1797.48,0.000386,14]
[398912416,1765987850267,-706.69,0.000386,14]
[398912418,1765987850276,-160.004932,0.000386,120]
[398912420,1765987850287,-151.0,0.000386,120]
[398912422,1765987850297,-151.0,0.000386,120]
[398912424,1765987850307,-151.0,0.000386,120]
[398912426,1765987850317,-151.0,0.000386,120]
[398912428,1765987850328,-151.0,0.000386,120]
[398912430,1765987850337,-151.0,0.000386,120]
[398912432,1765987850347,-151.0,0.000386,120]
[398912434,1765987850357,-261.331769,0.000386,120]
[398912436,1765987850367,-151.0,0.000386,120]
[398912438,1765987850377,-238.83234,0.000386,120]
[398912440,1765987850386,-151.0,0.000386,120]
[398912442,1765987850396,-151.0,0.000386,120]
[398912445,1765987850406,-165.251096,0.000386,120]
[398912447,1765987850416,-151.0,0.000386,120]
[398912449,1765987850426,-1000.0,0.000386,7]
[398912451,1765987850436,-16439.93601502,0.00038613,2]
[398912453,1765987850449,-634.47820321,0.00038613,2]
[398912455,1765987850459,-162.0,0.0003863,90]
[398912457,1765987850468,-150.0,0.00038637,7]
[398912459,1765987850478,-1000.0,0.00038687,30]
[398912461,1765987850487,-163.46,0.000387,30]
[398912463,1765987850497,-1000.0,0.00038701,15]
[398912465,1765987850507,-150.0,0.00038707,7]
[398912467,1765987850517,-151.0,0.00038799,120]
[398912469,1765987850526,-151.0,0.00038799,120]
[398912471,1765987850536,-200.0,0.00038799,14]
[398912473,1765987850546,-200.0,0.00038799,14]
[398912475,1765987850556,-578.20924308,0.00038799,14]
[398912477,1765987850565,-151.0,0.00038799,14]
[398912479,1765987850577,-1000.0,0.00038799,14]
[398912481,1765987850586,-162.66553992,0.00038799,14]
[398912483,1765987850597,-1000.0,0.00038799,14]
[398912486,1765987850607,-1000.0,0.00038799,14]
[398912488,1765987850616,-151.0,0.00038799,14]
[398912490,1765987850626,-1000.0,0.00038799,14]
[398912492,1765987850635,-151.0,0.00038799,14]
[398912494,1765987850645,-253.12348871,0.00038799,14]
[398912496,1765987850655,-151.0,0.00038799,14]
[398912498,1765987850665,-500.0,0.00038799,14]
[398912500,1765987850674,-306.00436977,0.00038799,14]
[398912502,1765987850683,-500.0,0.00038799,14]
[398912504,1765987850694,-500.0,0.00038799,14]
[398912506,1765987850703,-500.0,0.00038799,14]
[398912508,1765987850712,-496.01581523,0.00038799,14]
[398912510,1765987850722,-500.0,0.00038799,14]
[398912512,1765987850731,-502.33889427,0.00038799,14]
[398912514,1765987850741,-620.0,0.00038799,14]
[398912516,1765987850751,-500.0,0.00038799,14]
[398912518,1765987850761,-308.4975971,0.00038799,14]
[398912520,1765987850771,-200.0,0.00038799,14]
[398912521,1765987850781,-200.0,0.00038799,14]
[398912522,1765987850791,-500.0,0.00038799,14]
[398912523,1765987850801,-500.0,0.00038799,14]
[398912554,1765987851115,-151.0,0.00038799,14]
[398912556,1765987851124,-500.0,0.00038799,14]
[398912558,1765987851134,-500.0,0.00038799,14]
[398912560,1765987851144,-500.0,0.00038799,14]
[398912562,1765987851153,-284.78783801,0.00038799,14]
[398912564,1765987851162,-500.0,0.00038799,14]
[398912566,1765987851171,-500.0,0.00038799,14]
[398912567,1765987851181,-500.0,0.00038799,14]
[398912569,1765987851190,-500.0,0.00038799,14]
[398912572,1765987851200,-500.0,0.00038799,14]
[398912573,1765987851215,-500.0,0.00038799,14]
[398912576,1765987851224,-1500.0,0.00038799,14]
[398912577,1765987851234,-500.0,0.00038799,14]
[398912579,1765987851244,-500.0,0.00038799,14]
[398912582,1765987851255,-500.0,0.00038799,14]
[398912584,1765987851265,-500.0,0.00038799,14]
[398912586,1765987851274,-500.0,0.00038799,14]
[398912588,1765987851284,-500.0,0.00038799,14]
[398912590,1765987851296,-500.0,0.00038799,14]
[398912592,1765987851306,-500.0,0.00038799,14]
[398912594,1765987851315,-500.0,0.00038799,14]
[398912596,1765987851325,-334.2636125,0.00038799,14]
[398912598,1765987851334,-500.0,0.00038799,14]
[398912600,1765987851344,-250.0,0.00038799,14]
[398912602,1765987851353,-500.0,0.00038799,14]
[398912604,1765987851363,-250.0,0.00038799,14]
[398912606,1765987851372,-500.0,0.00038799,14]
[398912608,1765987851381,-500.0,0.00038799,14]
[398912610,1765987851391,-500.0,0.00038799,14]
[398912612,1765987851401,-425.06159563,0.00038799,14]
[398912614,1765987851410,-2112.0,0.00038799,14]
[398912616,1765987851419,-2112.0,0.00038799,14]
[398912618,1765987851428,-2112.0,0.00038799,14]
[398912620,1765987851437,-2112.0,0.00038799,14]
[398912622,1765987851447,-151.0,0.00038799,14]
[398912624,1765987851456,-2112.0,0.00038799,14]
[398912626,1765987851465,-151.0,0.00038799,14]
[398912628,1765987851474,-2112.0,0.00038799,14]
[398912630,1765987851483,-151.0,0.00038799,14]
[398912632,1765987851492,-2112.0,0.00038799,14]
[398912634,1765987851501,-2112.0,0.00038799,14]
[398912636,1765987851511,-151.0,0.00038799,14]
[398912638,1765987851520,-250.0,0.00038799,14]
[398912640,1765987851529,-500.0,0.00038799,14]
[398912642,1765987851538,-151.0,0.00038799,14]
[398912644,1765987851547,-250.0,0.00038799,14]
[398912646,1765987851557,-500.0,0.00038799,14]
[398912648,1765987851567,-661.30233005,0.00038799,14]
[398912650,1765987851577,-151.0,0.00038799,14]
[398912652,1765987851587,-250.0,0.00038799,14]
[398912654,1765987851597,-571.16053015,0.00038799,14]
[398912656,1765987851606,-151.0,0.00038799,14]
[398912658,1765987851615,-250.0,0.00038799,14]
[398912660,1765987851624,-250.0,0.00038799,14]
[398912662,1765987851634,-151.0,0.00038799,14]
[398912664,1765987851643,-250.0,0.00038799,14]
[398912666,1765987851652,-151.0,0.00038799,14]
[398912668,1765987851662,-250.0,0.00038799,14]
[398912670,1765987851671,-151.0,0.00038799,14]
[398912672,1765987851681,-250.0,0.00038799,14]
[398912674,1765987851691,-151.0,0.00038799,14]
[398912676,1765987851700,-250.0,0.00038799,14]
[398912678,1765987851710,-151.0,0.00038799,14]
[398912680,1765987851719,-151.0,0.00038799,14]
[398912682,1765987851729,-200.0,0.00038799,14]
[398912684,1765987851739,-200.0,0.00038799,14]
[398912686,1765987851748,-200.0,0.00038799,14]
[398912688,1765987851757,-200.0,0.00038799,14]
[398912690,1765987851767,-200.0,0.00038799,14]
[398912693,1765987851776,-2000.0,0.00038799,14]
[398912695,1765987851786,-2000.0,0.00038799,14]
[398912696,1765987851795,-645.80145623,0.00038799,14]
[398912699,1765987851804,-1000.0,0.00038799,14]
[398912701,1765987851814,-1000.0,0.00038799,14]
[398912703,1765987851825,-1000.0,0.00038799,14]
[398912705,1765987851834,-1000.0,0.00038799,14]
[398912707,1765987851843,-1000.0,0.00038799,14]
[398912708,1765987851853,-1000.0,0.00038799,14]
[398912711,1765987851863,-1000.0,0.00038799,14]
[398912713,1765987851872,-1000.0,0.00038799,14]
[398912715,1765987851881,-533.88981491,0.00038799,14]
[398912717,1765987851891,-1000.0,0.00038799,14]
[398912718,1765987851900,-553.64373807,0.00038799,14]
[398912721,1765987851910,-1000.0,0.00038799,14]
[398912723,1765987851920,-574.12855637,0.00038799,14]
[398912725,1765987851930,-1000.0,0.00038799,14]
[398912727,1765987851939,-595.37131296,0.00038799,14]
[398912729,1765987851949,-1000.0,0.00038799,14]
[398912731,1765987851958,-617.40005154,0.00038799,14]
[398912733,1765987851968,-1000.0,0.00038799,14]
[398912735,1765987851977,-640.24385345,0.00038799,14]
[398912737,1765987851987,-663.93287602,0.00038799,14]
[398912739,1765987851998,-688.49839244,0.00038799,14]
[398912741,1765987852007,-713.97283296,0.00038799,14]
[398912743,1765987852016,-740.38982778,0.00038799,14]
[398912745,1765987852026,-767.7842514,0.00038799,14]
[398912747,1765987852036,-796.19226871,0.00038799,14]
[398912749,1765987852046,-421.28072354,0.00038799,14]
[398912751,1765987852056,-1000.0,0.00038799,14]
[398912753,1765987852067,-9559.3046634,0.000388,14]
[398912755,1765987852078,-150.0,0.000388,19]
[398912757,1765987852087,-500.0,0.000388,14]
[398912759,1765987852097,-200.0,0.000388,2]
[398912761,1765987852107,-157.0,0.000388,7]
[398912763,1765987852116,-157.0,0.000388,7]
[398912765,1765987852126,-162.0461115,0.000388,7]
[398912767,1765987852137,-153.0,0.000388,7]
[398912769,1765987852148,-153.0,0.000388,7]
[398912771,1765987852157,-153.0,0.000388,7]
[398912773,1765987852167,-219.98192122,0.000388,7]
[398912775,1765987852176,-153.0,0.000388,7]
[398912777,1765987852185,-10103.5126298,0.000388,2]
[398912779,1765987852195,-500.0,0.000388,14]
[398912781,1765987852204,-471.02407788,0.000388,2]
[398912783,1765987852216,-15016.28263091,0.00038874,2]
[398912785,1765987852226,-12141.5671626,0.00038876,2]
[398912787,1765987852235,-385.37906696,0.000389,2]
[398912790,1765987852245,-14003.8447273,0.000389,2]
[398912792,1765987852255,-277.0947455,0.000389,2]
[398912794,1765987852264,-634.47820321,0.000389,2]
[398912796,1765987852274,-5797.87625258,0.000389,2]
[398912798,1765987852283,-349.14561395,0.000389,2]
[398912799,1765987852298,-236.91894819,0.000389,2]
[398912802,1765987852308,-16439.93601502,0.000389,2]
[398912804,1765987852318,-512.06,0.00038903,2]
[398912806,1765987852327,-2000.0,0.00038904,120]
[398912808,1765987852336,-15266.64,0.00038904,2]
[398912810,1765987852345,-207.0,0.0003891,30]
[398912812,1765987852355,-182.50362026,0.0003899,2]
[398912814,1765987852364,-151.0,0.00038997,14]
[398912816,1765987852373,-512.06,0.00038999,2]
[398912818,1765987852383,-512.06,0.00038999,2]
[398912820,1765987852392,-512.06,0.00038999,2]
[398912822,1765987852401,-512.06,0.00038999,2]
[398912824,1765987852411,-512.06,0.00038999,2]
[398912826,1765987852420,-512.06,0.00038999,2]
[398912828,1765987852429,-512.06,0.00038999,2]
[398912830,1765987852439,-512.06,0.00038999,2]
[398912832,1765987852448,-512.06,0.00038999,2]
[398912834,1765987852458,-512.06,0.00038999,2]
[398912836,1765987852467,-512.06,0.00038999,2]
[398912838,1765987852476,-512.06,0.00038999,2]
[398912840,1765987852486,-512.22,0.00038999,2]
[398912842,1765987852498,-300.0,0.00038999,10]
[398912844,1765987852512,-666.0,0.00038999,30]
[398912846,1765987852528,-1533.67248625,0.00039,31]
[398912848,1765987852537,-150.0,0.00039,60]
[398912850,1765987852547,-30528.94831586,0.00039,2]
[398912852,1765987852556,-7806.06155956,0.00039,30]
[398912854,1765987852565,-1390.57454281,0.00039,2]
[398912856,1765987852576,-471603.77617846,0.00039,2]
[398912858,1765987852585,-548042.44749206,0.00039,2]
[398912997,1765987855241,-872.14,0.00015595,2]
[398912998,1765987855258,-327.07856429,0.00015595,2]
[398912999,1765987855267,-500.0,0.00024657,2]
[398913000,1765987855277,-500.0,0.00024657,2]
[398913001,1765987855287,-492.94143571,0.00024657,2]
[398913002,1765987855299,-7.05856429,0.00024657,2]
[398913003,1765987855308,-500.0,0.00024657,2]
[398913004,1765987855318,-500.0,0.00024657,2]
[398913005,1765987855329,-500.0,0.00024657,2]
[398913006,1765987855338,-500.0,0.00024657,2]
[398913007,1765987855347,-428.0,0.00035891,2]
[398913008,1765987855357,-452.0,0.00036028,2]
[398913009,1765987855366,-16.94143571,0.00038425,120]
[398913010,1765987855381,-193.33748129,0.00038425,120]
[398913011,1765987855391,-151.0,0.00038425,120]
[398913012,1765987855401,-246.78122894,0.00039,2]
[398913013,1765987855412,-1603.29021026,0.00039,2]
[398913014,1765987855424,-109015.8277554,0.00039,2]
[398913015,1765987855435,-2970.00000004,0.00039,2]
[398913016,1765987855461,-160.36495877,0.00016438,2]
[398913017,1765987855471,-500.0,0.00024657,2]
[398913018,1765987855481,-452.0,0.00036165,2]
[398913019,1765987855491,-8.03991416,0.00039,2]
[398913020,1765987855505,-20247.70771122,0.00039,2]
[398913021,1765987855642,-222.0,0.00015595,2]
[398913022,1765987855652,-2833.29861513,0.000159,2]
[398913023,1765987855663,-563.0,0.0001961,2]
[398913024,1765987855672,-563.0,0.0002261,2]
[398913025,1765987855682,-500.0,0.00024657,2]
[398913026,1765987855691,-500.0,0.00024657,2]
[398913027,1765987855701,-408.10283143,0.00024657,2]
[398913028,1765987855711,-563.0,0.0002561,2]
[398913029,1765987855721,-563.0,0.0002861,2]
[398913030,1765987855731,-428.0,0.00036028,2]
[398913031,1765987855740,-428.0,0.00036165,2]
[398913032,1765987855750,-452.0,0.00036302,2]
[398913033,1765987855760,-1039.74166142,0.00039,2]
[398913034,1765987855772,-550.50950003,0.00039,2]
[398913035,1765987855807,-2904.0,0.00039,2]